bitfinex-derivatives/quotes_BTCF0:USTF0_20210111
["timestamp","ask_amount","ask_price","bid_price","bid_amount"]
[1610330310527,0.13632608,37181.0,37180.0,0.00021698]
[1610330310727,0.13632608,37181.0,37177.0,0.00021695]
[1610330311128,0.13632608,37181.0,37180.0,0.00021695]
[1610330311329,0.13632608,37181.0,37176.0,0.00021695]
[1610330311533,0.13632608,37181.0,37180.0,0.00021695]
[1610330311932,0.13632608,37181.0,37177.0,0.00021695]
[1610330312129,0.13632608,37181.0,37171.0,0.00021695]
[1610330312331,0.13632608,37181.0,37178.0,0.00021695]
[1610330312731,0.13632608,37181.0,37172.0,0.00021695]
[1610330312932,0.13632608,37181.0,37179.0,0.00021695]
[1610330313131,0.13632608,37181.0,37173.0,0.00021695]
[1610330313534,0.13632608,37181.0,37180.0,0.00021697]
[1610330313732,0.13632608,37181.0,37157.0,0.000217]
[1610330313931,0.13632608,37181.0,37153.0,0.1556]
[1610330313932,0.13632608,37158.0,37153.0,0.1556]
[1610330314331,0.13632608,37158.0,37157.0,0.00021703]
[1610330314531,0.13632608,37158.0,37154.0,0.00021703]
[1610330314731,0.13632608,37158.0,37157.0,0.00021703]
[1610330315132,0.13632608,37158.0,37155.0,0.00021703]
[1610330315332,0.13632608,37158.0,37153.0,0.1556]
[1610330315333,0.13632608,37158.0,37157.0,0.00021705]
[1610330315533,0.13632608,37158.0,37156.0,0.00021707]
[1610330315832,0.13632608,37158.0,37154.0,0.00021707]
[1610330316032,0.13632608,37158.0,37157.0,0.00021707]
[1610330316333,0.13632608,37158.0,37155.0,0.00021707]
[1610330316733,0.13632608,37158.0,37154.0,0.00021707]
[1610330316932,0.13632608,37158.0,37156.0,0.00021707]
[1610330317132,0.13632608,37158.0,37155.0,0.00021707]
[1610330317333,0.13632608,37158.0,37157.0,0.00021707]
[1610330317536,0.09871,37165.0,37157.0,0.00021707]
[1610330317736,0.09871,37165.0,37156.0,0.00021707]
[1610330317936,0.09871,37165.0,37158.0,0.00021707]
[1610330318136,0.09871,37165.0,37157.0,0.00021707]
[1610330318436,0.09871,37165.0,37156.0,0.13632608]
[1610330318437,0.09871,37165.0,37159.0,0.00021707]
[1610330318836,0.09871,37165.0,37157.0,0.00021707]
[1610330319036,0.09871,37165.0,37160.0,0.00021705]
[1610330319238,0.08957,37183.0,37158.0,0.00021705]
[1610330319637,1.7888,37188.0,37157.0,0.00021705]
[1610330319836,1.7888,37188.0,37160.0,0.13632608]
[1610330320237,1.7888,37188.0,37161.0,0.00021705]
[1610330320837,0.2888,37188.0,37161.0,0.00021705]
[1610330321840,0.13632608,37178.0,37164.0,0.13632608]
[1610330322039,0.20691608,37178.0,37164.0,0.13632608]
[1610330322439,0.20691608,37178.0,37165.0,0.00021703]
[1610330322841,0.07059,37178.0,37165.0,0.00021703]
[1610330323841,0.07059,37178.0,37177.0,0.13632608]
[1610330324242,0.10299,37192.0,37177.0,0.13632608]
[1610330324643,0.10299,37192.0,37177.0,0.13654305]
[1610330324842,0.10299,37192.0,37178.0,0.00021697]
[1610330325844,0.13632608,37206.0,37191.0,0.13632608]
[1610330326447,0.13632608,37206.0,37192.0,0.00021692]
[1610330326848,0.2743,37212.0,37192.0,0.00021692]
[1610330327649,0.273,37232.0,37192.0,0.00021692]
[1610330327853,0.273,37232.0,37228.0,0.13632608]
[1610330328251,0.273,37232.0,37229.0,0.00021694]
[1610330331955,0.13632608,37230.0,37229.0,0.00021694]
[1610330332157,0.21974608,37230.0,37229.0,0.00021694]
[1610330333458,0.08342,37230.0,37229.0,0.00021694]
[1610330336463,0.07351,37238.0,37229.0,0.00021694]
[1610330338067,0.07351,37238.0,37237.0,0.13632608]
[1610330338470,0.15341,37238.0,37237.0,0.13632608]
[1610330338867,0.07351,37238.0,37237.0,0.13632608]
[1610330339972,0.15501,37238.0,37237.0,0.13632608]
[1610330340874,0.07351,37238.0,37237.0,0.13632608]
[1610330341576,0.13632608,37248.0,37237.0,0.13632608]
[1610330341976,0.13632608,37248.0,37247.0,0.13632608]
[1610330342576,0.2952,37250.0,37247.0,0.13632608]
[1610330343577,0.0792,37249.0,37247.0,0.13632608]
[1610330343779,0.17242,37249.0,37247.0,0.13632608]
[1610330344580,0.09322,37249.0,37247.0,0.13632608]
[1610330345682,0.0812,37248.0,37247.0,0.13632608]
[1610330347785,0.09322,37249.0,37247.0,0.13632608]
[1610330347984,0.13632608,37248.0,37247.0,0.13632608]
[1610330348184,0.13632608,37248.0,37239.0,4.1388]
[1610330348788,0.21592608,37248.0,37239.0,4.1388]
[1610330349586,0.13632608,37248.0,37239.0,4.1388]
[1610330349987,0.13632608,37240.0,37239.0,4.1388]
[1610330350187,0.24526608,37240.0,37239.0,4.1388]
[1610330351991,0.24526608,37240.0,37239.0,4.13901679]
[1610330355196,0.24526608,37240.0,37239.0,0.00021679]
[1610330355996,0.32646608,37240.0,37239.0,0.00021679]
[1610330356197,0.24526608,37240.0,37239.0,0.00021679]
[1610330357000,0.32486608,37240.0,37239.0,0.00021679]
[1610330357805,0.32486608,37240.0,37211.0,0.00021675]
[1610330358005,0.13632608,37215.0,37211.0,0.13654283]
[1610330358204,0.13632608,37215.0,37211.0,0.13632608]
[1610330358404,0.13632608,37215.0,37212.0,0.00021678]
[1610330359203,0.0804,37214.0,37212.0,0.00843305]
[1610330360601,0.13632608,37215.0,37212.0,0.00843305]
[1610330361504,0.0811,37214.0,37212.0,0.00843305]
[1610330362005,0.13632608,37215.0,37212.0,0.00843305]
[1610330362606,0.13632608,37215.0,37204.0,0.00844083]
[1610330362806,0.13632608,37215.0,37213.0,0.00022195]
[1610330363006,0.13632608,37215.0,37213.0,0.00844109]
[1610330363205,0.13632608,37215.0,37205.0,0.00844199]
[1610330363406,0.13632608,37215.0,37214.0,0.00844196]
[1610330363605,0.13632608,37215.0,37214.0,0.00022199]
[1610330363805,0.13632608,37215.0,37176.0,0.00844217]
[1610330364009,0.08645,37220.0,37214.0,0.00844198]
[1610330364206,1.5,37237.0,37185.0,0.13632608]
[1610330364405,1.5,37237.0,37186.0,0.00844238]
[1610330364606,3.1751,37219.0,37191.0,3.4896]
[1610330364806,3.27967,37219.0,37191.0,3.4896]
[1610330365006,3.27967,37219.0,37192.0,0.02799419]
[1610330365406,4.77967,37219.0,37192.0,0.02799419]
[1610330365607,4.77967,37219.0,37192.0,0.00844275]
[1610330365807,4.77967,37219.0,37193.0,0.00844331]
[1610330366007,0.13632608,37194.0,37193.0,0.00844331]
[1610330366206,0.25050608,37194.0,37193.0,0.00844331]
[1610330366407,0.25050608,37194.0,37192.0,0.00844368]
[1610330366607,0.25050608,37194.0,37193.0,0.00844366]
[1610330367207,0.25050608,37194.0,37192.0,0.00844331]
[1610330367407,0.25050608,37194.0,37193.0,0.00844288]
[1610330367606,0.11418,37194.0,37193.0,0.00844288]
[1610330367806,0.10213,37204.0,37193.0,0.00844288]
[1610330368006,0.10213,37204.0,37203.0,0.13632608]
[1610330368606,0.10213,37204.0,37203.0,0.14476779]
[1610330369208,0.10457,37219.0,37203.0,0.14476779]
[1610330369607,0.10457,37219.0,37204.0,0.0084409]
[1610330369808,6.8195,37225.0,37204.0,0.0084409]
[1610330370008,6.8195,37225.0,37214.0,0.13632608]
[1610330370608,6.8195,37225.0,37215.0,0.00022204]
[1610330371209,6.8195,37225.0,37215.0,0.00843965]
[1610330372010,6.8195,37225.0,37224.0,0.13632608]
[1610330372710,6.8195,37225.0,37224.0,0.13654812]
[1610330372912,6.8195,37225.0,37224.0,0.00022204]
[1610330373312,6.8195,37225.0,37206.0,0.00843908]
[1610330373512,6.89426,37225.0,37224.0,0.00022204]
[1610330373912,0.07476,37225.0,37207.0,0.00022206]
[1610330374112,0.07476,37225.0,37211.0,0.13632608]
[1610330374516,0.07476,37225.0,37212.0,0.00022207]
[1610330374716,0.07476,37225.0,37212.0,0.00843986]
[1610330375316,0.07476,37225.0,37206.0,0.00844008]
[1610330375717,0.07476,37225.0,37213.0,0.00844075]
[1610330375916,0.07476,37225.0,37207.0,0.00844083]
[1610330376117,0.07476,37225.0,37205.0,0.1556]
[1610330376118,0.07476,37225.0,37211.0,0.13632608]
[1610330376418,0.07476,37225.0,37212.0,0.00844021]
[1610330378119,0.13632608,37222.0,37218.0,0.13632608]
[1610330378618,0.13632608,37222.0,37219.0,0.00844006]
[1610330379822,0.13632608,37222.0,37206.0,0.00844023]
[1610330380223,0.13632608,37213.0,37205.0,0.1556]
[1610330380424,0.13632608,37213.0,37207.0,0.00844103]
[1610330380624,0.13632608,37213.0,37206.0,0.00844087]
[1610330380823,0.23750608,37213.0,37206.0,0.00844087]
[1610330381023,0.23750608,37213.0,37208.0,0.00844049]
[1610330381223,0.23750608,37213.0,37206.0,0.00844049]
[1610330381424,0.23750608,37213.0,37209.0,0.00844049]
[1610330381826,0.23750608,37213.0,37207.0,0.00844101]
[1610330382026,0.23750608,37213.0,37206.0,0.00844101]
[1610330382224,0.13632608,37207.0,37205.0,0.1556]
[1610330382824,0.13632608,37207.0,37206.0,0.00844117]
[1610330383827,0.13632608,37207.0,37189.0,0.00844245]
[1610330384025,0.13632608,37207.0,37206.0,0.00844251]
[1610330384426,0.13632608,37207.0,37190.0,0.00844352]
[1610330384627,0.13632608,37207.0,37206.0,0.00844356]
[1610330384825,0.13632608,37207.0,37185.0,0.00844363]
[1610330385225,0.13632608,37207.0,37206.0,0.00844363]
[1610330385425,0.13632608,37207.0,37186.0,0.00844373]
[1610330385825,0.13632608,37207.0,37206.0,0.00844357]
[1610330386026,0.13632608,37207.0,37187.0,0.00844368]
[1610330386226,0.13632608,37194.0,37190.0,0.13632608]
[1610330386826,0.13632608,37194.0,37191.0,0.00844365]
[1610330387228,0.13632608,37194.0,37192.0,0.00844342]
[1610330387528,0.13632608,37194.0,37192.0,0.00844337]
[1610330387927,0.13632608,37194.0,37191.0,0.00844339]
[1610330388128,0.13632608,37194.0,37193.0,0.00844334]
[1610330388331,0.13632608,37194.0,37192.0,0.00844325]
[1610330388530,0.13632608,37194.0,37193.0,0.00022217]
[1610330388931,0.13632608,37194.0,37193.0,0.00844291]
[1610330389131,0.13632608,37194.0,37191.0,0.0084432]
[1610330389330,0.13632608,37194.0,37193.0,0.00022217]
[1610330389531,0.13632608,37194.0,37193.0,0.00844312]
[1610330389732,0.13632608,37194.0,37192.0,0.0084429]
[1610330389929,0.13632608,37194.0,37193.0,0.00844327]
[1610330390429,0.0891,37204.0,37191.0,0.00844296]
[1610330390830,0.0891,37204.0,37190.0,0.13632608]
[1610330390831,0.0891,37204.0,37193.0,0.00844298]
[1610330391030,0.0891,37204.0,37191.0,0.00844276]
[1610330391231,0.0891,37204.0,37194.0,0.00844243]
[1610330391632,0.10118,37213.0,37191.0,0.00844228]
[1610330391833,0.287,37224.0,37195.0,0.008442]
[1610330392034,0.287,37224.0,37192.0,0.008442]
[1610330392235,0.13632608,37208.0,37204.0,0.13632608]
[1610330392634,0.24557608,37208.0,37204.0,0.13632608]
[1610330392833,0.24557608,37208.0,37205.0,0.00844181]
[1610330395537,0.24557608,37208.0,37193.0,0.07154729]
[1610330395738,0.24557608,37208.0,37206.0,0.00844264]
[1610330396137,0.24557608,37208.0,37193.0,0.07154837]
[1610330396337,0.24557608,37208.0,37207.0,0.00844339]
[1610330396537,0.24557608,37208.0,37194.0,0.00844359]
[1610330396738,0.24557608,37208.0,37207.0,0.00022221]
[1610330396937,0.24557608,37208.0,37207.0,0.0084437]
[1610330397137,0.24557608,37208.0,37195.0,0.00844363]
[1610330397339,0.24557608,37208.0,37207.0,0.00844394]
[1610330397537,0.24557608,37208.0,37207.0,0.00822171]
[1610330397738,0.24557608,37208.0,37196.0,0.00844398]
[1610330397938,0.24557608,37208.0,37207.0,0.00844388]
[1610330398138,0.24557608,37208.0,37197.0,0.00844395]
[1610330398338,0.24557608,37208.0,37193.0,0.07154867]
[1610330398540,3.6545,37207.0,37193.0,0.07154867]
[1610330398740,3.6545,37207.0,37198.0,0.00844371]
[1610330398940,3.6545,37207.0,37194.0,0.00844404]
[1610330399140,3.6545,37207.0,37199.0,0.0084441]
[1610330399539,3.6545,37207.0,37195.0,0.0084441]
[1610330399740,3.6545,37207.0,37187.0,0.00844413]
[1610330399941,3.6545,37207.0,37196.0,0.00844404]
[1610330400141,0.13632608,37197.0,37196.0,0.00844404]
[1610330400342,0.13632608,37197.0,37188.0,0.00844397]
[1610330400544,0.24466608,37197.0,37187.0,0.00844437]
[1610330400743,0.24466608,37197.0,37189.0,0.00844444]
[1610330401144,0.24466608,37197.0,37188.0,0.00844451]
[1610330401343,0.24466608,37197.0,37185.0,0.06312336]
[1610330401344,0.24466608,37197.0,37187.0,0.00844485]
[1610330401544,0.10834,37197.0,37189.0,0.00844482]
[1610330401944,0.10834,37197.0,37188.0,0.00844417]
[1610330402144,0.10834,37197.0,37196.0,0.13632608]
[1610330402746,0.13632608,37201.0,37196.0,0.13632608]
[1610330402747,0.13632608,37201.0,37196.0,0.14476875]
[1610330403147,0.10925,37208.0,37197.0,0.00844263]
[1610330403547,0.287,37224.0,37197.0,0.00844263]
[1610330404150,0.287,37224.0,37203.0,0.13632608]
[1610330404749,0.287,37224.0,37204.0,0.00844178]
[1610330406252,0.13632608,37205.0,37204.0,0.00022217]
[1610330406452,0.13632608,37205.0,37198.0,0.13632608]
[1610330406652,0.13632608,37205.0,37204.0,0.00844192]
[1610330406852,0.13632608,37205.0,37199.0,0.00844189]
[1610330407154,0.10628,37208.0,37204.0,0.00844182]
[1610330407353,0.10628,37208.0,37200.0,0.00844191]
[1610330407754,0.10628,37208.0,37205.0,0.00844199]
[1610330407953,0.10628,37208.0,37198.0,0.13632608]
[1610330407954,0.10628,37208.0,37201.0,0.00844184]
[1610330408153,0.10628,37208.0,37206.0,0.00844184]
[1610330408555,0.10628,37208.0,37202.0,0.14476781]
[1610330408756,0.10628,37208.0,37207.0,0.00844122]
[1610330408955,0.10628,37208.0,37203.0,0.0084413]
[1610330409355,0.10628,37208.0,37207.0,0.00844137]
[1610330409555,0.10628,37208.0,37204.0,0.00844137]
[1610330409756,0.10628,37208.0,37207.0,0.00844135]
[1610330409956,0.10628,37208.0,37203.0,0.00844131]
[1610330410358,0.10628,37208.0,37207.0,0.00844141]
[1610330410556,0.10628,37208.0,37204.0,0.00844181]
[1610330410957,0.10628,37208.0,37199.0,0.00844184]
[1610330411159,0.10628,37208.0,37205.0,0.00844187]
[1610330411360,0.10628,37208.0,37200.0,0.008442]
[1610330411560,0.287,37224.0,37199.0,0.00844216]
[1610330411957,0.287,37224.0,37201.0,0.00844208]
[1610330412158,0.287,37224.0,37200.0,0.00844193]
[1610330412357,0.13632608,37201.0,37199.0,0.00844187]
[1610330412757,0.13632608,37201.0,37198.0,0.13632608]
[1610330412959,0.09745,37209.0,37200.0,0.00844176]
[1610330413159,0.09745,37209.0,37199.0,0.00844176]
[1610330413560,0.09745,37209.0,37201.0,0.00844171]
[1610330413759,0.09745,37209.0,37199.0,0.00844188]
[1610330414359,0.09745,37209.0,37203.0,0.13632608]
[1610330414759,0.09745,37209.0,37204.0,0.00844198]
[1610330417764,0.13632608,37212.0,37205.0,0.00844187]
[1610330417963,0.13632608,37212.0,37205.0,0.00022226]
[1610330418165,0.13632608,37212.0,37204.0,0.00844189]
[1610330418564,0.22083608,37212.0,37206.0,0.00022226]
[1610330418963,0.22083608,37212.0,37204.0,0.00844187]
[1610330419364,0.22083608,37212.0,37207.0,0.00022224]
[1610330419564,0.22083608,37212.0,37204.0,0.00844187]
[1610330419763,0.0794,37211.0,37208.0,0.00021875]
[1610330419964,0.08451,37212.0,37208.0,0.00021875]
[1610330420164,0.07476,37225.0,37205.0,0.00021875]
[1610330420364,0.13632608,37236.0,37224.0,0.13632608]
[1610330420766,4.5305,37237.0,37224.0,0.13632608]
[1610330420964,0.0812,37236.0,37225.0,0.00021871]
[1610330421164,2.08382245,37253.0,37225.0,1.50021871]
[1610330421364,0.2842,37253.0,37225.0,1.50021871]
[1610330421765,0.2842,37253.0,37226.0,0.01786196]
[1610330421965,0.2842,37253.0,37226.0,0.05902896]
[1610330422166,0.0802,37252.0,37226.0,0.05902896]
[1610330422366,0.15698,37252.0,37251.0,0.13632608]
[1610330422666,0.15698,37252.0,37251.0,0.13654461]
[1610330423467,0.07678,37252.0,37251.0,0.13654461]
[1610330424468,0.15728,37252.0,37251.0,0.13654461]
[1610330424668,0.07678,37252.0,37251.0,0.13654461]
[1610330424867,1.79157139,37290.0,37251.0,0.13654461]
[1610330425270,0.2765,37293.0,37251.0,0.13654461]
[1610330425468,0.2765,37293.0,37252.0,0.00021844]
[1610330426469,0.2765,37293.0,37286.0,0.13632608]
[1610330427272,0.2765,37293.0,37255.0,0.07374]
[1610330427673,0.37338,37293.0,37255.0,0.07374]
[1610330427874,0.09688,37293.0,37256.0,0.00021841]
[1610330428474,0.09688,37293.0,37292.0,0.13632608]
[1610330428674,0.2859,37328.0,37292.0,0.13632608]
[1610330428874,0.2859,37328.0,37292.0,0.13654421]
[1610330429275,0.2859,37328.0,37292.0,0.13632608]
[1610330429875,0.0797,37327.0,37292.0,0.13632608]
[1610330430076,0.2859,37328.0,37292.0,0.13632608]
[1610330430275,0.2859,37328.0,37292.0,3.89782608]
[1610330430477,0.2859,37328.0,37327.0,0.13632608]
[1610330430678,0.2859,37328.0,37327.0,0.25119608]
[1610330431480,0.2859,37328.0,37327.0,0.11487]
[1610330431679,0.2859,37328.0,37308.0,0.09895]
[1610330431879,0.38906,37328.0,37308.0,0.09895]
[1610330432480,0.13632608,37312.0,37308.0,0.09895]
[1610330432679,0.24384608,37312.0,37299.0,0.13632608]
[1610330434087,0.10752,37312.0,37299.0,0.13632608]
[1610330434482,0.10752,37312.0,37309.0,0.13632608]
[1610330435284,0.13632608,37323.0,37309.0,0.13632608]
[1610330436484,0.081,37322.0,37298.0,0.09245]
[1610330436884,0.38906,37328.0,37298.0,0.09245]
[1610330437084,0.38906,37328.0,37292.0,3.7615]
[1610330438487,0.13632608,37293.0,37292.0,3.7615]
[1610330438690,0.22021608,37293.0,37292.0,3.7615]
[1610330439689,0.22021608,37293.0,37285.0,4.1791]
[1610330439889,0.22021608,37293.0,37213.0,0.3179]
[1610330440290,0.2795,37292.0,37213.0,0.3179]
[1610330440490,0.13632608,37272.0,37270.0,0.13632608]
[1610330441693,0.1086,37285.0,37270.0,0.13632608]
[1610330442494,0.2939,37291.0,37284.0,0.13632608]
[1610330443094,0.2939,37291.0,37278.0,0.09199]
[1610330444398,0.13632608,37279.0,37278.0,0.09199]
[1610330444595,0.13632608,37279.0,37270.0,0.07409]
[1610330446396,0.13632608,37279.0,37278.0,0.13632608]
[1610330446996,0.13632608,37279.0,37278.0,0.23970608]
[1610330448201,0.2939,37291.0,37278.0,0.23970608]
[1610330448401,0.2939,37291.0,37289.0,0.13632608]
[1610330454106,0.2939,37291.0,37286.0,0.07386]
[1610330454307,0.2939,37291.0,37285.0,3.8339]
[1610330454508,0.2939,37291.0,37287.0,0.00021826]
[1610330454707,0.2939,37291.0,37286.0,0.10519]
[1610330456411,0.2939,37291.0,37290.0,0.13632608]
[1610330457610,0.2939,37291.0,37290.0,0.13654438]
[1610330458910,1.0,37392.0,37290.0,0.13654438]
[1610330459111,1.0,37392.0,37291.0,0.00021819]
[1610330459712,0.03310574,37391.0,37291.0,0.00021819]
[1610330459912,0.12908574,37391.0,37291.0,0.00021819]
[1610330460112,0.0795,37390.0,37291.0,0.00021819]
[1610330460514,0.00032775,37389.0,37320.0,0.13632608]
[1610330460714,0.03310323,37389.0,37291.0,0.00021819]
[1610330461115,0.03310323,37389.0,37321.0,0.00021819]
[1610330461314,0.03310337,37390.0,37311.0,0.09078]
[1610330461514,0.03310339,37388.0,37311.0,0.09078]
[1610330461917,0.03310384,37389.0,37312.0,0.00021819]
[1610330462118,0.03310393,37387.0,37312.0,0.00021819]
[1610330462315,0.11220204,37388.0,37312.0,0.00021819]
[1610330462515,0.13632608,37327.0,37325.0,0.13632608]
[1610330462715,0.0798,37326.0,37325.0,0.13632608]
[1610330463117,0.0798,37326.0,37325.0,0.00021819]
[1610330463516,0.0798,37326.0,37312.0,0.00021819]
[1610330464119,0.13632608,37327.0,37312.0,0.00021819]
[1610330464519,0.13632608,37313.0,37312.0,0.00021819]
[1610330465521,0.23561608,37313.0,37287.0,0.00021825]
[1610330466122,0.0812,37312.0,37287.0,0.00021825]
[1610330466523,0.09929,37313.0,37288.0,0.13632608]
[1610330466925,0.09929,37313.0,37289.0,0.00021829]
[1610330467523,0.0804,37312.0,37289.0,0.00021829]
[1610330467924,0.0804,37312.0,37290.0,3.9217]
[1610330468123,4.0121,37348.0,37290.0,3.9217]
[1610330468523,0.13632608,37326.0,37317.0,0.13632608]
[1610330469123,0.13632608,37326.0,37318.0,0.00021822]
[1610330470425,0.0795,37325.0,37318.0,0.00021822]
[1610330470626,0.0795,37325.0,37321.0,0.13632608]
[1610330470826,0.0795,37325.0,37322.0,0.0002182]
[1610330471025,0.13632608,37326.0,37322.0,0.0002182]
[1610330471527,0.03632608,37326.0,37322.0,0.0002182]
[1610330472729,0.03632608,37326.0,37313.0,0.0002182]
[1610330473327,0.0808,37325.0,37313.0,0.0002182]
[1610330473527,0.14746608,37326.0,37313.0,0.0002182]
[1610330473727,0.14746608,37326.0,37298.0,0.09951]
[1610330474327,0.14746608,37326.0,37299.0,0.0002183]
[1610330474528,0.13632608,37303.0,37299.0,0.0002183]
[1610330475330,0.03632608,37303.0,37299.0,0.0002183]
[1610330475528,0.09267,37315.0,37299.0,0.0002183]
[1610330476330,0.11114,37326.0,37299.0,0.0002183]
[1610330476530,0.11114,37326.0,37315.0,0.13632608]
[1610330476930,0.11114,37326.0,37316.0,0.00021828]
[1610330477532,0.11114,37326.0,37301.0,0.0002183]
[1610330477731,0.11114,37326.0,37317.0,0.00021832]
[1610330478130,0.11114,37326.0,37302.0,0.00021834]
[1610330478331,0.11114,37326.0,37287.0,0.00021836]
[1610330478532,0.07172,37326.0,37303.0,0.00021836]
[1610330478932,0.07172,37326.0,37288.0,0.00021836]
[1610330479132,0.07172,37326.0,37304.0,0.00021836]
[1610330479333,0.07172,37326.0,37289.0,0.00021836]
[1610330479533,0.07172,37326.0,37287.0,0.00021834]
[1610330479934,0.07172,37326.0,37290.0,0.00022485]
[1610330480133,0.07172,37326.0,37287.0,0.00842383]
[1610330480435,0.0806,37325.0,37287.0,0.00842383]
[1610330480635,0.13632608,37316.0,37311.0,0.13632608]
[1610330481033,0.13632608,37316.0,37312.0,0.00842252]
[1610330481833,0.0813,37315.0,37312.0,0.00842252]
[1610330482134,0.13632608,37316.0,37312.0,0.00842252]
[1610330483135,0.0798,37315.0,37312.0,0.00842252]
[1610330484135,0.13632608,37316.0,37297.0,0.00842262]
[1610330484334,0.13632608,37316.0,37313.0,0.00842286]
[1610330484735,0.13632608,37316.0,37298.0,0.14474937]
[1610330484935,0.13632608,37316.0,37314.0,0.00842329]
[1610330485136,0.13632608,37316.0,37299.0,0.00842337]
[1610330485537,0.13632608,37316.0,37315.0,0.00842337]
[1610330485739,0.13632608,37316.0,37299.0,0.00842349]
[1610330485937,0.13632608,37316.0,37315.0,0.00842326]
[1610330486337,0.13632608,37316.0,37300.0,0.00842355]
[1610330486537,0.07054,37317.0,37315.0,0.00842347]
[1610330486738,0.07054,37317.0,37301.0,0.00842309]
[1610330487038,0.10307,37317.0,37315.0,0.00842323]
[1610330487238,0.10307,37317.0,37302.0,0.00842323]
[1610330487638,0.10307,37317.0,37316.0,0.00842323]
[1610330487839,0.10307,37317.0,37299.0,0.00842314]
[1610330488040,0.10307,37317.0,37316.0,0.0084232]
[1610330488438,0.10307,37317.0,37300.0,0.00842271]
[1610330488639,0.10307,37317.0,37316.0,0.00842277]
[1610330488839,0.10307,37317.0,37301.0,0.00842282]
[1610330489239,0.10307,37317.0,37316.0,0.00842302]
[1610330489439,0.10307,37317.0,37302.0,0.00842291]
[1610330489639,0.10307,37317.0,37316.0,0.00842283]
[1610330490039,0.10307,37317.0,37303.0,0.00842283]
[1610330490239,0.10307,37317.0,37316.0,0.00842239]
[1610330490438,0.10307,37317.0,37304.0,0.00842239]
[1610330490641,0.10307,37317.0,37316.0,0.000225]
[1610330491041,0.10307,37317.0,37305.0,0.00842294]
[1610330491240,0.10307,37317.0,37316.0,0.000225]
[1610330491440,0.10307,37317.0,37299.0,0.00842277]
[1610330491841,0.10307,37317.0,37316.0,0.000225]
[1610330492040,0.13632608,37318.0,37300.0,0.00842261]
[1610330492240,0.13632608,37318.0,37316.0,0.00022498]
[1610330492641,0.13632608,37318.0,37303.0,0.13632608]
[1610330492840,0.23888608,37318.0,37317.0,0.00022498]
[1610330493040,0.23888608,37318.0,37304.0,0.00842255]
[1610330493441,0.23888608,37318.0,37317.0,0.00022498]
[1610330493642,0.23888608,37318.0,37305.0,0.00022498]
[1610330493842,0.23888608,37318.0,37317.0,0.00022498]
[1610330494241,0.23888608,37318.0,37304.0,0.00819757]
[1610330494242,0.23888608,37318.0,37306.0,0.00022498]
[1610330494442,0.10256,37318.0,37317.0,0.00022496]
[1610330494644,0.10256,37318.0,37317.0,0.13632608]
[1610330494842,0.13632608,37331.0,37317.0,0.13632608]
[1610330495043,0.13632608,37331.0,37317.0,0.13655102]
[1610330495242,0.13632608,37331.0,37318.0,0.0084203]
[1610330496644,0.09052,37334.0,37318.0,0.0084203]
[1610330496645,0.13632608,37319.0,37318.0,0.0084203]
[1610330496844,0.21587608,37319.0,37318.0,0.0084203]
[1610330497044,0.21587608,37319.0,37313.0,0.00842018]
[1610330497444,0.21587608,37319.0,37318.0,0.00842033]
[1610330497644,0.21587608,37319.0,37314.0,0.00842085]
[1610330497845,0.21587608,37319.0,37318.0,0.00842145]
[1610330498245,0.21587608,37319.0,37312.0,0.02991046]
[1610330498446,0.21587608,37319.0,37318.0,0.00842201]
[1610330498643,0.21587608,37319.0,37312.0,0.0214885]
[1610330498644,0.21587608,37319.0,37313.0,0.00842145]
[1610330498845,0.21587608,37319.0,37313.0,0.00022496]
[1610330499045,0.21587608,37319.0,37312.0,0.02990997]
[1610330499244,0.21587608,37319.0,37314.0,0.0084215]
[1610330499444,0.21587608,37319.0,37313.0,0.0084215]
[1610330499644,0.21587608,37319.0,37312.0,0.02991019]
[1610330500044,0.21587608,37319.0,37314.0,0.00842175]
[1610330500245,0.21587608,37319.0,37313.0,0.00842201]
[1610330500445,0.21587608,37319.0,37312.0,0.02991061]
[1610330500645,0.13632608,37313.0,37312.0,0.02991061]
[1610330500847,0.13632608,37313.0,37312.0,0.0214885]
[1610330501047,0.13632608,37313.0,37312.0,0.0299101]
[1610330501245,0.07955,37319.0,37312.0,0.0299101]
[1610330501946,0.09052,37334.0,37312.0,0.0299101]
[1610330502147,3.7208,37352.0,37312.0,0.0299101]
[1610330502347,5.2208,37352.0,37312.0,0.0299101]
[1610330502746,0.13632608,37313.0,37312.0,0.0299101]
[1610330502947,0.21269608,37313.0,37312.0,0.0299101]
[1610330505849,0.21269608,37313.0,37312.0,0.00842176]
[1610330506049,1.71269608,37313.0,37312.0,0.00842176]
[1610330506449,1.71269608,37313.0,37271.0,0.02152065]
[1610330506450,1.71269608,37313.0,37300.0,0.00842384]
[1610330506651,1.71269608,37313.0,37312.0,0.00842588]
[1610330506652,1.57637,37313.0,37312.0,0.00842588]
[1610330506855,1.57637,37313.0,37301.0,0.00842671]
[1610330507052,0.5712,37312.0,37301.0,0.00022515]
[1610330507255,1.5,37311.0,37265.0,0.00842854]
[1610330507452,1.5,37311.0,37302.0,0.00842892]
[1610330507652,1.5,37311.0,37243.0,0.10822]
[1610330508053,1.5,37311.0,37244.0,0.00843021]
[1610330508654,0.13632608,37245.0,37244.0,0.00843021]
[1610330510056,0.13632608,37245.0,37240.0,0.00843156]
[1610330510256,0.13632608,37245.0,37244.0,0.00022462]
[1610330510456,0.13632608,37245.0,37244.0,0.00843237]
[1610330510657,0.13632608,37245.0,37241.0,0.00022462]
[1610330510856,0.13632608,37245.0,37244.0,0.00022462]
[1610330511057,0.13632608,37245.0,37242.0,0.00022462]
[1610330511459,0.13632608,37245.0,37244.0,0.00022462]
[1610330511660,0.13632608,37245.0,37243.0,0.00022465]
[1610330512260,0.13632608,37245.0,37221.0,0.00843401]
[1610330512459,0.13632608,37245.0,37244.0,0.0002247]
[1610330512660,0.13632608,37245.0,37222.0,0.00843546]
[1610330513059,0.13632608,37245.0,37244.0,0.00022468]
[1610330513260,0.13632608,37245.0,37223.0,0.00843486]
[1610330513459,0.13632608,37245.0,37244.0,0.00022473]
[1610330513761,0.13632608,37245.0,37224.0,0.00843687]
[1610330513962,0.13632608,37245.0,37244.0,0.00022475]
[1610330514360,0.13632608,37245.0,37192.0,0.0739]
[1610330514760,0.0983,37246.0,37193.0,0.13655084]
[1610330515161,0.08076,37254.0,37194.0,0.00022476]
[1610330515361,0.2719,37262.0,37194.0,0.00022476]
[1610330516361,0.2719,37262.0,37195.0,0.1556]
[1610330516762,0.13632608,37224.0,37196.0,0.00843687]
[1610330516962,0.13632608,37224.0,37196.0,0.00022474]
[1610330517162,0.13632608,37224.0,37197.0,0.00022474]
[1610330517762,0.13632608,37224.0,37195.0,0.1556]